Workbook

Sheet Summary of Funding (hidden)
A1: Date Issued: 13th October 2025 | H1: Last amended:10th October 2025
A2: COVENTRY CITY COUNCIL
A3: 2025/26 Funding Allocations for Schools | N3: 50
A4: INDICATIVE Summary of Funding
A6: =_xlfn.XLOOKUP("P"&$N$3,'[5]Minimum Funding Guarantee'!$A:$A,'[5]Minimum Funding Guarantee'!$C:$C) -> Stivichall Primary School | N6: Checks
A9: =IF((N36+N37)=0,"","***ERROR - CALCULATED ADJUSTMENT DOES NOT EQUAL ACTUAL ***") -> 
A10: Main Funding Elements
A12: School Budget Share 2025/26 | F12: ='Budget Share Statement'!K58 -> 2619475.913 | N12: =F12-'Budget Share Statement'!K58 -> 0
A14: Indicative Early Years Funding 2025/26* (to be updated) | F14: ='EYSFF statement'!K30 -> 0 | N14: =F14-'EYSFF statement'!K30 -> 0
A16: Early Years Funding Adjustment 2024/25# | F16: =_xlfn.IFNA(_xlfn.XLOOKUP("P"&$N$3,'[6]25-26 adj'!$A:$A,'[6]25-26 adj'!$F:$F),0) -> 0
H18: =SUM(F12,F14,F16) -> 2619475.913 | N18: =N12+N14 -> 0
A20: Other 2025/26 Funding Elements
A22: National Insurance Contribution Grant | F22: =_xlfn.XLOOKUP("P"&$N$3,[7]School_Level!$AC:$AC,[7]School_Level!$AB:$AB)+_xlfn.IFNA(_xlfn.XLOOKUP("P"&$N$3,[8]Sheet1!$A:$A,[8]Sheet1!$M:$M),0) -> 46083
A24: Indicative Pupil Premium Grant † (excludes LAC & EYPP elements) | F24: =_xlfn.XLOOKUP("P"&$N$3,[9]Allocations!$A$1:$A$65536,[9]Allocations!$V$1:$V$65536) -> 53655
A26: Indicative High Needs Top-up Funding § | F26: =_xlfn.XLOOKUP("P"&$N$3,'[10]Band 5-6 Delegation Summer Info'!$A:$A,'[10]Band 5-6 Delegation Summer Info'!$M:$M)+_xlfn.XLOOKUP("P"&$N$3,'[10]Band 5-6 Delegation Autumn Info'!$A:$A,'[10]Band 5-6 Delegation Autumn Info'!$P:$P)+_xlfn.XLOOKUP("P"&$N$3,'[10]Band 5-6 Delegation Spring Info'!$A:$A,'[10]Band 5-6 Delegation Spring Info'!$P:$P) -> 142760.32
A28: Class Size Funding | F28: =_xlfn.XLOOKUP(N3,'[11]Class size'!$A:$A,'[11]Class size'!$N:$N) -> 0
A30: Bulge Class Second Year Funding | F30: =_xlfn.IFNA(_xlfn.XLOOKUP("P"&$N$3,'[11]Bulge Class 2nd Year'!$R:$R,'[11]Bulge Class 2nd Year'!$T:$T),0) -> 0
A32: Disproportionate SEN | F32: =-_xlfn.XLOOKUP("P"&$N$3,[12]Sheet1!$C:$C,[12]Sheet1!$T:$T) -> 85057.50381
H34: =F24+F26+F28+F32+F22+F30 -> 327555.8238
A36: Total Revenue Resources | H36: =H18+H34 -> 2947031.737 | N36: =N12+N14+N24+N26+N28+N18 -> 0
N37: =ROUND(('Budget Share Statement'!O58+'EYSFF statement'!N30+'De-delegation'!O25+'Minimum Funding Level'!O28+'Funding Floor'!N42+'MFG Calculation'!N55),0) -> 0
A39: Notes
A40: This funding summary is intended to give you an overview of the resources allocated to the school for the financial year 2025/26.
A41: Please ensure that you read this budget share pack in conjunction with the explanatory notes which are available to download online.
A43: * Early Years funding has been estimated based on participation at the 24/25 census levels for Aut-25 and Spr-26 and
A44: actual participation level for Sum-25- please see the EYSFF statement for further detail.
A45: # Due to a pupil number error relating to Summer 24 that was not corrected until after the end of financial year 2024/25,
A46: we have had to include an additional line adjusting Early Years funding. This adjustment is a reduction in funding for a small
A47: number of schools. Your SFO’s have been made aware of this & the adjustment should already be built into your 2025/26 budget plans.
A48: † Pupil Premium Funding has been updated to reflect 25/26 eligibility data from DfE. This may still be subject to slight change.
A49: § Indicative High Needs Top-up Funding has been calculated based on your number of pupils on high needs bandings in 2024/25
A50: using 2025/26 funding rates for Aut-25 and Spr-26. Sum-25 is based on actual pupils on high needs bandings. This figure
A51: will change based on the real time movement of pupils during the 2025/26 financial year and so will not be final until March 2026.

Sheet Budget Share Statement (hidden)
A1: ='Summary of Funding'!A1 -> Date Issued: 13th October 2025 | K1: ='Summary of Funding'!H1 -> Last amended:10th October 2025
A2: COVENTRY CITY COUNCIL
A3: ='Summary of Funding'!A3:H3 -> 2025/26 Funding Allocations for Schools | N3: ='Summary of Funding'!N3 -> 50
A4: INDICATIVE School Budget Share Statement
A6: =_xlfn.XLOOKUP("P"&$N$3,'[5]Minimum Funding Guarantee'!$A:$A,'[5]Minimum Funding Guarantee'!$C:$C) -> Stivichall Primary School | O6: Checks
A10: Factors | C10: Factor Measurement | G10: Number of Units | I10: Funding Per Unit | K10: Funding Allocated
I11: £ | K11: £
A12: Basic Entitlement
A13: Funding | C13: Pupil Number: (Oct-24 Census) | G13: =_xlfn.XLOOKUP("P"&$N$3,[13]Data!$A:$A,[13]Data!$G:$G) -> 533 | I13: =[13]Formula!$D$2 -> 3860.54144 | K13: =G13*I13 -> 2057668.588 | O13: =_xlfn.XLOOKUP("P"&$N$3,[13]Formula!$A:$A,[13]Formula!$D:$D)-K13 -> 0
K15: =K13 -> 2057668.588
A17: Deprivation Funding | C17: IDACI Band G: Pupil's IDACI < 0.20 | G17: =_xlfn.XLOOKUP("P"&$N$3,[13]Data!$A:$A,[13]Data!$V:$V) -> 490 | I17: 0 | K17: =G17*I17 -> 0
C18: IDACI Band F: 0.20 ≤ Pupil's IDACI < 0.25 | G18: =_xlfn.XLOOKUP("P"&$N$3,[13]Data!$A:$A,[13]Data!$W:$W) -> 25 | I18: =[13]Formula!$N$2 -> 235.8272 | K18: =G18*I18 -> 5895.68 | O18: =_xlfn.XLOOKUP("P"&$N$3,[13]Formula!$A:$A,[13]Formula!$N:$N)-K18 -> 0
C19: IDACI Band E: 0.25 ≤ Pupil's IDACI < 0.30 | G19: =_xlfn.XLOOKUP("P"&$N$3,[13]Data!$A:$A,[13]Data!$X:$X) -> 8 | I19: =[13]Formula!$O$2 -> 286.0032 | K19: 2288.0256 | O19: =_xlfn.XLOOKUP("P"&$N$3,[13]Formula!$A:$A,[13]Formula!$O:$O)-K19 -> 0
C20: IDACI Band D: 0.30 ≤ Pupil's IDACI < 0.35 | G20: =_xlfn.XLOOKUP("P"&$N$3,[13]Data!$A:$A,+[13]Data!$Y:$Y) -> 8 | I20: =[13]Formula!$P$2 -> 446.5664 | K20: 3572.5312 | O20: =_xlfn.XLOOKUP("P"&$N$3,[13]Formula!$A:$A,[13]Formula!$P:$P)-K20 -> 0
C21: IDACI Band C: 0.35 ≤ Pupil's IDACI < 0.40 | G21: =_xlfn.XLOOKUP("P"&$N$3,[13]Data!$A:$A,[13]Data!$Z:Z) -> 0 | I21: =[13]Formula!$Q$2 -> 491.7248 | K21: 0 | O21: =_xlfn.XLOOKUP("P"&$N$3,[13]Formula!$A:$A,[13]Formula!$Q:$Q)-K21 -> 0
C22: IDACI Band B: 0.40 ≤ Pupil's IDACI < 0.50 | G22: =_xlfn.XLOOKUP("P"&$N$3,[13]Data!$A:$A,[13]Data!$AA:$AA) -> 2 | I22: =[13]Formula!$R$2 -> 521.8304 | K22: 1043.6608 | O22: =_xlfn.XLOOKUP("P"&$N$3,[13]Formula!$A:$A,[13]Formula!$R:$R)-K22 -> 0
C23: IDACI Band A: 0.50 ≤ Pupil's IDACI ≤ 1.00 | G23: =_xlfn.XLOOKUP("P"&$N$3,[13]Data!$A:$A,[13]Data!$AB:$AB) -> 0 | I23: =[13]Formula!$S$2 -> 687.4112 | K23: 0 | O23: =_xlfn.XLOOKUP("P"&$N$3,[13]Formula!$A:$A,[13]Formula!$S:$S)-K23 -> 0
C24: Free School Meals: (Oct-24 FSM Eligibility) | G24: =_xlfn.XLOOKUP("P"&$N$3,[13]Data!$A:$A,[13]Data!$T:$T) -> 26 | I24: =[13]Formula!$E$2 -> 496.7424 | K24: 12915.3024 | O24: =_xlfn.XLOOKUP("P"&$N$3,[13]Formula!$A:$A,[13]Formula!$E:$E)-K24 -> 0
C25: Free School Meals Ever 6: (Oct-24 FSM Eligibility) | G25: =_xlfn.XLOOKUP("P"&$N$3,[13]Data!$A:$A,[13]Data!$U:$U) -> 26 | I25: =[13]Formula!$F$2 -> 1063.7312 | K25: 27657.0112 | O25: =_xlfn.XLOOKUP("P"&$N$3,[13]Formula!$A:$A,[13]Formula!$F:$F)-K25 -> 0
K27: =SUM(K17:K25) -> 53372.2112
A29: Prior Attainment Funding | C29: No.pupils not reaching expected level of development | G29: =_xlfn.XLOOKUP("P"&$N$3,[13]Data!$A:$A,[13]Data!$AC:$AC) -> 88.33462888 | I29: =[13]Formula!$G$2 -> 1179.136 | K29: =G29*I29 -> 104158.541 | O29: =_xlfn.XLOOKUP("P"&$N$3,[13]Formula!$A:$A,[13]Formula!$G:$G)-K29 -> 0
A31: English as an Additional
A32: Language Funding | C32: No. EAL in compulsory education for 3 years or less | G32: =_xlfn.XLOOKUP("P"&$N$3,[13]Data!$A:$A,[13]Data!$AD:$AD) -> 45.58552632 | I32: =[13]Formula!$H$2 -> 597.0944 | K32: =G32*I32 -> 27218.86248 | O32: =_xlfn.XLOOKUP("P"&$N$3,[13]Formula!$A:$A,[13]Formula!$H:$H)-K32 -> 0
A34: Pupil Mobility Funding | C34: No.pupils in last 3 years who didn’t start school in Sept | G34: =_xlfn.XLOOKUP("P"&$N$3,[13]Data!$A:$A,[13]Data!$AE:$AE) -> 0 | I34: =[13]Formula!$I$2 -> 968.3968 | K34: =G34*I34 -> 0 | O34: =_xlfn.XLOOKUP("P"&$N$3,[13]Formula!$A:$A,[13]Formula!$I:$I)-K34 -> 0
A36: Lump Sum | C36: One set amount for all schools | K36: =_xlfn.XLOOKUP("P"&$N$3,[13]Formula!$A:$A,[13]Formula!$J:$J) -> 145610.752 | O36: =_xlfn.XLOOKUP("P"&$N$3,[13]Formula!$A:$A,[13]Formula!$J:$J)-K36 -> 0
A38: Split Sites Funding | C38: Lump Sum | K38: =_xlfn.XLOOKUP("P"&$N$3,[13]Formula!$A:$A,[13]Formula!$L:$L) -> 0 | O38: =_xlfn.XLOOKUP("P"&$N$3,[13]Formula!$A:$A,[13]Formula!$L:$L)-K38 -> 0
A40: Rates Funding | C40: Estimated 2025/26 rates bill | H40: =_xlfn.XLOOKUP("P"&$N$3,[13]Formula!$A:$A,[13]Formula!$K:$K) -> 84630 | I40: =INDEX([14]Formula!$J:$J,MATCH("P"&$N$3,[14]Formula!$A:$A,0))-E40 -> 128432.64 | K40: =H40 -> 84630 | O40: =_xlfn.XLOOKUP("P"&$N$3,[13]Formula!$A:$A,[13]Formula!$K:$K)-K40 -> 0
A42: Total Formula Factor Funding | K42: =K15+K27+K32+K34+K36+K38+K40+K29 -> 2472658.954 | O42: =_xlfn.XLOOKUP("P"&$N$3,[13]Formula!$A:$A,[13]Formula!$U:$U)-K42 -> 0
A44: Minimum Per Pupil (MPP) Funding Level Allocation | H44: ='Minimum Funding Level'!J28 -> 252986.0458 | O44: =ROUND(_xlfn.XLOOKUP("P"&$N$3,[13]Formula!$A:$A,[13]Formula!$V:$V),2)-H44 -> 0.004163906618
A46: Total Funding Allocated before Minimum Funding Guarantee (MFG) | K46: =K42+H44 -> 2725645 | O46: =_xlfn.XLOOKUP("P"&$N$3,[13]Formula!$A:$A,[13]Formula!$W:$W)-K46 -> 0
A48: MFG Protection (additional funding/top-slice) | H48: ='MFG Calculation'!J62 -> 0 | O48: =ROUND(_xlfn.XLOOKUP("P"&$N$3,[13]Formula!$A:$A,[13]Formula!$Z:$Z),2)-H48 -> 0
A50: Total Funding Allocated after protection Arrangements | K50: =K46+H48 -> 2725645 | O50: =_xlfn.XLOOKUP("P"&$N$3,[13]Formula!$A:$A,[13]Formula!$AA:$AA)-K50 -> 0
A52: 25/26 De-delegation | C52: See separate 'De-delegation' sheet | H52: ='De-delegation'!K25 -> -21539.08685 | O52: =ROUND(_xlfn.XLOOKUP("P"&$N$3,[13]Formula!$A:$A,[13]Formula!$AB:$AB),2)-H52 -> -0.003148120002
A54: 25/26 Risk Protection Arrangement Deduction | H54: =-IFERROR(_xlfn.XLOOKUP("P"&$N$3,'[15]LAMS Data'!$AH:$AH,'[15]LAMS Data'!$AE:$AE),0) -> 0
A56: 25/26 Business Rates Deduction | H56: =-H40 -> -84630
A58: Total Funding Allocated after MFG, De-delegation and RPA & NNDR Adjustments | K58: =K50+H52+H54+H56 -> 2619475.913 | O58: =ROUND(_xlfn.XLOOKUP("P"&$N$3,[13]Formula!$A:$A,[13]Formula!$AC:$AC),2)-K58+H56+H54 -> -0.003148119897
A60: Notes
A61: If you have chosen to join the DfE Risk Protection Arrangement, the value of your charge has been deducted from your budget share.

Sheet Minimum Funding Level (hidden)
A1: ='Summary of Funding'!A1 -> Date Issued: 13th October 2025 | K1: ='Summary of Funding'!H1 -> Last amended:10th October 2025
A2: COVENTRY CITY COUNCIL
A3: ='Summary of Funding'!A3:H3 -> 2025/26 Funding Allocations for Schools | N3: ='Summary of Funding'!N3 -> 50
A4: Calculation of Minimum Per Pupil (MPP) Funding Level
A6: =_xlfn.XLOOKUP("P"&$N$3,'[5]Minimum Funding Guarantee'!$A:$A,'[5]Minimum Funding Guarantee'!$C:$C) -> Stivichall Primary School | N6: Checks
G9: £ | J9: £
A10: NFF Minimum per pupil funding rate | G10: ='[13]Minimum Per Pupil'!$D$3 -> 4955 | N10: ='[13]Minimum Per Pupil'!$D$3-G10 -> 0
A12: October 2024 Pupil Numbers | G12: =_xlfn.XLOOKUP("P"&$N$3,'[13]Minimum Per Pupil'!$A:$A,'[13]Minimum Per Pupil'!$D:$D) -> 533 | N12: =_xlfn.XLOOKUP("P"&$N$3,'[13]Minimum Per Pupil'!$A:$A,'[13]Minimum Per Pupil'!$D:$D)-G12 -> 0
A14: Minimum Funding Level (MFL) | F14: [A] | J14: =G10*G12 -> 2641015 | N14: =_xlfn.XLOOKUP("P"&$N$3,'[13]Minimum Per Pupil'!$A:$A,'[13]Minimum Per Pupil'!$E:$E)-J14 -> 0
A17: Total Formula Factor Funding | G17: ='Budget Share Statement'!K42 -> 2472658.954 | N17: =_xlfn.XLOOKUP("P"&$N$3,'[13]Minimum Per Pupil'!$A:$A,'[13]Minimum Per Pupil'!$G:$G)-G17 -> 0
A19: Less: exempt premises factors
A20: 2025/26 NNDR | G20: =_xlfn.XLOOKUP("P"&$N$3,[13]Formula!$A:$A,[13]Formula!$K:$K) -> 84630 | H20: =INDEX([14]Formula!$K:$K,MATCH("P"&$N$3,[14]Formula!$A:$A,0))-A20 ->  | N20: =_xlfn.XLOOKUP("P"&$N$3,[13]Formula!$A:$A,[13]Formula!$K:$K)-G20 -> 0
A22: 2025/26 Split Site | G22: =_xlfn.XLOOKUP("P"&$N$3,[13]Formula!$A:$A,[13]Formula!$L:$L) -> 0 | H22: =INDEX([14]Formula!$K:$K,MATCH("P"&$N$3,[14]Formula!$A:$A,0))-A22 ->  | N22: =_xlfn.XLOOKUP("P"&$N$3,[13]Formula!$A:$A,[13]Formula!$L:$L)-G22 -> 0
A25: 2025/26 Funding for MFL comparison | F25: [B] | J25: =G17-SUM(G20:G22) -> 2388028.954 | N25: =_xlfn.XLOOKUP("P"&$N$3,'[13]Minimum Per Pupil'!$A:$A,'[13]Minimum Per Pupil'!$K:$K)-J25 -> 0
A28: MFL shortfall to be funded [B] - [A] | F28: = [B] - [A] | J28: =IF(J25<J14,J14-J25,0) -> 252986.0458 | N28: =_xlfn.XLOOKUP("P"&$N$3,'[13]Minimum Per Pupil'!$A:$A,'[13]Minimum Per Pupil'!$M:$M)-J28 -> 4.656612873e-10

Sheet MFG Calculation (hidden)
A1: ='Summary of Funding'!A1 -> Date Issued: 13th October 2025 | K1: ='Summary of Funding'!H1 -> Last amended:10th October 2025
A2: COVENTRY CITY COUNCIL
A3: ='Summary of Funding'!A3:H3 -> 2025/26 Funding Allocations for Schools | N3: ='Summary of Funding'!N3 -> 50
A4: Calculation of Minimum Funding Guarantee
A6: =_xlfn.XLOOKUP("P"&$N$3,[5]Formula!$A:$A,[5]Formula!$C:$C) -> Stivichall Primary School | N6: Checks
A9: Baseline | C9: =IF(N55>=0," ","DOES NOT BALANCE") ->  | G9: £ | J9: £
A11: Final Budget Share 2024/25(Excluding Early Years) | J11: =_xlfn.XLOOKUP("P"&$N$3,'[13]Minimum Funding Guarantee'!$A:$A,'[13]Minimum Funding Guarantee'!$H:$H) -> 2532540
A13: Less:
A14: 2024/25 Rates Funding | G14: =_xlfn.XLOOKUP("P"&$N$3,'[13]Minimum Funding Guarantee'!$A:$A,'[13]Minimum Funding Guarantee'!$J:$J) -> 84630 | H14: =_xlfn.XLOOKUP("P"&$N$3,'[16]Minimum Funding Guarantee'!$A:$A,'[16]Minimum Funding Guarantee'!$H:$H) -> 2385744
A16: 2025/26 Lump Sum | G16: =_xlfn.XLOOKUP("P"&$N$3,'[13]Minimum Funding Guarantee'!$A:$A,'[13]Minimum Funding Guarantee'!$I:$I) -> 145610.752 | H16: =INDEX('[14]Minimum Funding Guarantee'!$H:$H,MATCH("P"&$N$3,'[14]Minimum Funding Guarantee'!$A:$A,0)) -> 2299029
A18: 2024/25 Split Site | G18: =_xlfn.XLOOKUP("P"&$N$3,'[13]Minimum Funding Guarantee'!$A:$A,'[13]Minimum Funding Guarantee'!$L:$L) -> 0 | H18: =INDEX('[14]Minimum Funding Guarantee'!$H:$H,MATCH("P"&$N$3,'[14]Minimum Funding Guarantee'!$A:$A,0)) -> 2299029 | J18: =-SUM(G14,G16,G18) -> -230240.752
A20: Add:
A21: 2024/25 Supplementary Grant | G21: =_xlfn.XLOOKUP("P"&$N$3,'[13]Minimum Funding Guarantee'!$A:$A,'[13]Minimum Funding Guarantee'!$M:$M) -> 158347.3854 | H21: =INDEX('[14]Minimum Funding Guarantee'!$H:$H,MATCH("P"&$N$3,'[14]Minimum Funding Guarantee'!$A:$A,0)) -> 2299029 | J21: =G21 -> 158347.3854
A23: Adjusted Budget Share 2024/25 | J23: =J11+J18+J21 -> 2460646.633 | N23: =_xlfn.XLOOKUP("P"&$N$3,'[13]Minimum Funding Guarantee'!$A:$A,'[13]Minimum Funding Guarantee'!$N:$N)-J23 -> 0
A26: Guaranteed Unit Funding Calculation | J26: £
A28: Adjusted Budget Share 2024/25 | G28: =J23 -> 2460646.633
A30: October 2023 Pupil Number | G30: =_xlfn.XLOOKUP("P"&$N$3,'[13]Minimum Funding Guarantee'!$A:$A,'[13]Minimum Funding Guarantee'!$D:$D) -> 531 | H30: =INDEX('[14]Minimum Funding Guarantee'!$H:$H,MATCH("P"&$N$3,'[14]Minimum Funding Guarantee'!$A:$A,0)) -> 2299029
A32: Adjusted Budget Share 2024/25 Per Pupil | J32: =G28/G30 -> 4633.986127 | N32: =_xlfn.XLOOKUP("P"&$N$3,'[13]Minimum Funding Guarantee'!$A:$A,'[13]Minimum Funding Guarantee'!$O:$O)-J32 -> 0
A34: Minimum Funding Guarantee Protection Level | G34: ='[13]Minimum Funding Guarantee'!$R$3-1 -> 0
A36: 2025/26 Guaranteed Unit Funding | J36: =J32*(1+G34) -> 4633.986127
A39: Guaranteed Funding Level Calculation
A41: 2025/26 Guaranteed Unit Funding | G41: =J36 -> 4633.986127
A43: October 2024 Pupil Number | G43: =_xlfn.XLOOKUP("P"&$N$3,'[13]Minimum Funding Guarantee'!$A:$A,'[13]Minimum Funding Guarantee'!$E:$E) -> 533 | H43: =INDEX('[14]Minimum Funding Guarantee'!$H:$H,MATCH("P"&$N$3,'[14]Minimum Funding Guarantee'!$A:$A,0)) -> 2299029
A45: 2025/26 Guaranteed Funding Level | J45: =G41*G43 -> 2469914.606
A47: Add:
A48: 2025/26 Rates | G48: =_xlfn.XLOOKUP("P"&$N$3,'[13]Minimum Funding Guarantee'!$A:$A,'[13]Minimum Funding Guarantee'!$Z:$Z) -> 84630 | H48: =INDEX('[14]Minimum Funding Guarantee'!$H:$H,MATCH("P"&$N$3,'[14]Minimum Funding Guarantee'!$A:$A,0)) -> 2299029
A50: 2025/26 Lump Sum | G50: =_xlfn.XLOOKUP("P"&$N$3,'[13]Minimum Funding Guarantee'!$A:$A,'[13]Minimum Funding Guarantee'!$Y:$Y) -> 145610.752 | H50: =INDEX('[14]Minimum Funding Guarantee'!$H:$H,MATCH("P"&$N$3,'[14]Minimum Funding Guarantee'!$A:$A,0)) -> 2299029
A52: 2025/26 Split Site | G52: =_xlfn.XLOOKUP("P"&$N$3,'[13]Minimum Funding Guarantee'!$A:$A,'[13]Minimum Funding Guarantee'!$AA:$AA) -> 0 | H52: =INDEX('[14]Minimum Funding Guarantee'!$H:$H,MATCH("P"&$N$3,'[14]Minimum Funding Guarantee'!$A:$A,0)) -> 2299029 | J52: =SUM(G48,G50) -> 230240.752
A55: 2025/26 Minimum Funding Guarantee | J55: =J45+J52 -> 2700155.358 | N55: =_xlfn.XLOOKUP("P"&$N$3,'[13]Minimum Funding Guarantee'!$A:$A,'[13]Minimum Funding Guarantee'!$Q:$Q)-J55 -> 0
A58: 2025/26 Minimum Funding Guarantee | G58: =J45+J52 -> 2700155.358
A60: 2025/26 Total Formula Funding allocated pre-MFG | G60: ='Budget Share Statement'!K46 -> 2725645
A62: 2025/26 MFG Protection (additional funding/top-slice) | J62: =_xlfn.XLOOKUP("P"&$N$3,'[13]Minimum Funding Guarantee'!$A:$A,'[13]Minimum Funding Guarantee'!$V:$V) -> 0 | N62: =_xlfn.XLOOKUP("P"&$N$3,'[13]Minimum Funding Guarantee'!$A:$A,'[13]Minimum Funding Guarantee'!$V:$V)-J62 -> 0
A64: Note:
A65: The Minimum Funding Guarantee is compared with your Budget Share before 2024/25 de-delegated budgets are removed.

Sheet De-delegation (hidden)
A1: ='Summary of Funding'!A1 -> Date Issued: 13th October 2025 | K1: ='Summary of Funding'!H1 -> Last amended:10th October 2025
A2: COVENTRY CITY COUNCIL
A3: ='Summary of Funding'!A3:H3 -> 2025/26 Funding Allocations for Schools | N3: ='Summary of Funding'!N3 -> 50
A4: ="De-Delegation Detail" -> De-Delegation Detail
A6: =_xlfn.XLOOKUP("P"&$N$3,[5]Formula!$A:$A,[5]Formula!$C:$C) -> Stivichall Primary School | O6: Checks
A10: Factors | C10: Factor Measurement | G10: Number of Units | I10: Funding Per Unit | K10: Funding Allocated
I11: £ | K11: £
A12: Basic Entitlement
A13: Funding
A14: Maternity Cover | C14: Pupil Number: (Oct-24 Census) | G14: =_xlfn.XLOOKUP("P"&$N$3,[13]Data!$A:$A,[13]Data!$D:$D) -> 533 | I14: =-'[13]New Del & De-Del'!$G$9 -> -33.02218303 | K14: =G14*I14 -> -17600.82356 | O14: =ROUND(_xlfn.XLOOKUP("P"&$N$3,'[13]New Del & De-Del'!$A:$A,'[13]New Del & De-Del'!$K:$K)+K14,0) -> 0
A15: Trade Union Facility | C15: Pupil Number: (Oct-24 Census) | G15: =_xlfn.XLOOKUP("P"&$N$3,[13]Data!$A:$A,[13]Data!$D:$D) -> 533 | I15: =-'[13]New Del & De-Del'!$G$10 -> -4 | K15: =G15*I15 -> -2132 | O15: =ROUND(_xlfn.XLOOKUP("P"&$N$3,'[13]New Del & De-Del'!$A:$A,'[13]New Del & De-Del'!$L:$L)+K15,0) -> 0
K17: =SUM(K14:K15) -> -19732.82356 | O17: =ROUND(_xlfn.XLOOKUP("P"&$N$3,'[13]New Del & De-Del'!$A:$A,'[13]New Del & De-Del'!$D:$D)+K17,0) -> 0
A18: Deprivation Funding
A19: Free School Meal Eligibility | C19: Free School Meals: (Oct-24 FSM Eligibility) | G19: =_xlfn.XLOOKUP("P"&$N$3,[13]Data!$A:$A,[13]Data!$T:$T) -> 26 | I19: =-'[13]New Del & De-Del'!$G$7 -> -2.583671792 | K19: =G19*I19 -> -67.17546658 | O19: =ROUND(_xlfn.XLOOKUP("P"&$N$3,'[13]New Del & De-Del'!$A:$A,'[13]New Del & De-Del'!$E:$E)+K19,0) -> 0
A21: English as an Additional
A22: Language Funding
A23: EMAS: New Arrivals Grant | C23: EAL3: EAL in child's 1st 3 years of compulsory education | G23: =_xlfn.XLOOKUP("P"&$N$3,[13]Data!$A:$A,[13]Data!$AD:$AD) -> 45.58552632 | I23: =-'[13]New Del & De-Del'!$G$12 -> -38.15 | K23: =G23*I23 -> -1739.087829 | O23: =ROUND(_xlfn.XLOOKUP("P"&$N$3,'[13]New Del & De-Del'!$A:$A,'[13]New Del & De-Del'!$F:$F)+K23,0) -> 0
A25: Total De-Delegation | K25: =K17+K19+K23 -> -21539.08685 | O25: =ROUND(_xlfn.XLOOKUP("P"&$N$3,'[13]New Del & De-Del'!$A:$A,'[13]New Del & De-Del'!$H:$H)+K25,0) -> 0

Sheet EYSFF statement (hidden)
A1: ='Summary of Funding'!A1 -> Date Issued: 13th October 2025 | K1: ='Summary of Funding'!H1 -> Last amended:10th October 2025
A2: COVENTRY CITY COUNCIL
A3: ='Summary of Funding'!A3:H3 -> 2025/26 Funding Allocations for Schools | N3: ='Summary of Funding'!N3 -> 50
A4: INDICATIVE Early Years Funding Statement
A6: =_xlfn.XLOOKUP("P"&$N$3,[5]Formula!$A:$A,[5]Formula!$C:$C) -> Stivichall Primary School | N6: Checks
A9: School Data | E9: Early Years Rates
E10: Free Entitlement | G10: Extended Entitlement
A11: January 2024 Headcount
A12: IDACI based on January 2025 census | E12: =_xlfn.IFNA(_xlfn.XLOOKUP("P"&$N$3,[17]Sheet1!$A:$A,[17]Sheet1!$D:$D),0) -> 0 | G12: =_xlfn.IFNA(_xlfn.XLOOKUP("P"&$N$3,[17]Sheet1!$A:$A,[17]Sheet1!$D:$D),0) -> 0
A13: Universal Base Rate | E13: 5.21 | G13: 5.21
A14: Universal Deprivation Rate | E14: 1.56 | G14: 1.56
E17: Summer Term 2025 | G17: Autumn Term 2025 | I17: Spring Term 2026 | K17: Whole Financial Year
E18: (12 Weeks) | G18: (15 Weeks) | I18: (11 Weeks) | K18: (38 Weeks)
E19: (Per May 25 census) | G19: (Per Oct 24 census) | I19: (Per Jan 25 census)
A20: Formula Factors | E20: Updated | G20: To be updated | I20: To be updated
A21: Free Entitlement Headcount | E21: =_xlfn.IFNA(_xlfn.XLOOKUP("P"&$N$3,[17]Sheet1!$A:$A,[17]Sheet1!$H:$H),0) -> 0 | G21: =_xlfn.IFNA(_xlfn.XLOOKUP("P"&$N$3,[18]Sheet1!$A:$A,[18]Sheet1!$P:$P),0) -> 0 | I21: =_xlfn.IFNA(_xlfn.XLOOKUP("P"&$N$3,[6]Sheet1!$A:$A,[6]Sheet1!$W:$W),0) -> 0
A22: Free Entitlement Hours Provided | E22: =_xlfn.IFNA(_xlfn.XLOOKUP("P"&$N$3,[17]Sheet1!$A:$A,[17]Sheet1!$G:$G),0) -> 0 | G22: =_xlfn.IFNA(_xlfn.XLOOKUP("P"&$N$3,[18]Sheet1!$A:$A,[18]Sheet1!$O:$O),0)/14*15 -> 0 | I22: =_xlfn.IFNA(_xlfn.XLOOKUP("P"&$N$3,[6]Sheet1!$A:$A,[6]Sheet1!$V:$V),0)/12*11 -> 0
A23: Extended Entitlement Headcount | E23: =_xlfn.IFNA(_xlfn.XLOOKUP("P"&$N$3,[17]Sheet1!$A:$A,[17]Sheet1!$J:$J),0) -> 0 | G23: =_xlfn.IFNA(_xlfn.XLOOKUP("P"&$N$3,[18]Sheet1!$A:$A,[18]Sheet1!$R:$R),0) -> 0 | I23: =_xlfn.IFNA(_xlfn.XLOOKUP("P"&$N$3,[6]Sheet1!$A:$A,[6]Sheet1!$Y:$Y),0) -> 0
A24: Extended Entitlement Hours Provided | E24: =_xlfn.IFNA(_xlfn.XLOOKUP("P"&$N$3,[17]Sheet1!$A:$A,[17]Sheet1!$I:$I),0) -> 0 | G24: =_xlfn.IFNA(_xlfn.XLOOKUP("P"&$N$3,[18]Sheet1!$A:$A,[18]Sheet1!$Q:$Q),0)/14*15 -> 0 | I24: =_xlfn.IFNA(_xlfn.XLOOKUP("P"&$N$3,[6]Sheet1!$A:$A,[6]Sheet1!$X:$X),0)/12*11 -> 0
A26: Base Rate Funding | E26: =IFERROR((E22+E24)*$E13,0) -> 0 | G26: =IFERROR((G22+G24)*$E13,0) -> 0 | I26: =IFERROR((I22+I24)*$E13,0) -> 0
A28: Deprivation Funding | E28: =IFERROR((E21+E23)*$E$14*15*12*$E$12,0) -> 0 | G28: =IFERROR((G21+G23)*$E$14*15*15*$E$12,0) -> 0 | I28: =IFERROR((I21+I23)*$E$14*15*11*$E$12,0) -> 0
A30: Total 2025/26 Funding Under EYSFF (£) | E30: =E28+E26 -> 0 | G30: =G28+G26 -> 0 | I30: =I28+I26 -> 0 | K30: =E30+G30+I30 -> 0
A33: Note:
A34: This Early Years budget has been estimated based on full participation at the 24/25 census levels for Autumn-25 and
A35: Spring-26 using the 25/26 hourly rates. Summer-25 is calculated using Summer-25 census.
A37: At this point in time, you will have the best knowledge of relevant pupil numbers and as such are in the best position to estimate
A38: what the EYSFF funding position will be. Work with your SFO's to make an estimate and work through the financial implications.
A40: Your actual Early Years funding will be updated through the year to reflect the actual provision delivered as recorded on the
A41: Autumn-25 and Spring-26 school census information. As in previous years, this means that your Early Years
A42: funding will not be finalised until after the Spring 2026 census has been finalised.

Sheet Further Delegation Info (hidden)
A1: ='Summary of Funding'!A1 -> Date Issued: 13th October 2025 | H1: ='Summary of Funding'!H1 -> Last amended:10th October 2025 | N1: ID
A2: COVENTRY CITY COUNCIL
A3: ='Summary of Funding'!A3:H3 -> 2025/26 Funding Allocations for Schools
A4: Further Delegation Information
A6: All Schools
A9: The 2013/14 School Funding Reform required local authorities to delegate some centrally retained DSG budgets to schools; those budgets are listed below in the columns headed "Delegated in 2013/14" for your information.
A11: For 2025/26 maintained schools have opted to return some of this funding to the Local Authority to continue central provision of the relevant services. The delegated budget available to each maintained school therefore excludes these returned budgets. The relevant amounts are listed below in the columns headed "De-delegation in 2025/26" for your reference.
A17: S251 line | B17: Further Delegation Areas | C17: Delegated in 2013/14 | F17: De-delegation in 2025/26
C18: Primary (all) £ | D18: Secondary (all) £ | E18: Total (all) £ | F18: Primary Maintained £ | G18: Secondary Maintained £ | H18: Total Maintained £
A19: 1.1.4 | B19: Free school meal eligibility | C19: 20899.32112 | D19: 11151.53862 | E19: 32050.85975 | F19: ='[13]New Del & De-Del'!$I$7 -> 12618.65303 | G19: 0 | H19: =SUM(F19:G19) -> 12618.65303
A20: 1.1.7 | B20: Licences/subscriptions | C20: 56639.72318 | D20: 35735.64289 | E20: 92375.36607 | F20: ='[13]New Del & De-Del'!$I$8 -> 0 | G20: 0 | H20: =SUM(F20:G20) -> 0
A21: 1.1.8 | B21: Maternity/special staffing suspension | C21: 356766.1768 | D21: 225094.1208 | E21: 581860.2976 | F21: ='[13]New Del & De-Del'!$I$9 -> 634124.9808 | G21: 0 | H21: 634124.9808
A22: 1.1.9 | B22: Trade Union facility | C22: 195944.4399 | D22: 123627.026 | E22: 319571.4659 | F22: ='[13]New Del & De-Del'!$I$10 -> 76812 | G22: 0 | H22: 76812
A23: 1.1.10 | B23: School Improvement | C23: 0 | D23: 0 | E23: 0 | F23: ='[13]New Del & De-Del'!$I$11 -> 0 | G23: 0 | H23: 0
A24: 1.1.3 | B24: Ethnic Minority Acheivement Service (EMAS) | C24: 991053 | D24: 284303 | E24: 1275356 | F24: ='[13]New Del & De-Del'!$I$12 -> 170150.2611 | G24: 0 | H24: 170150.2611
A25: 1.1.2 | B25: Behaviour support services | C25: 310504 | D25: 256781 | E25: 567285 | F25: ='[13]New Del & De-Del'!$I$13 -> 0 | G25: =-'[19]New Del & De-Del'!$J13 -> 0 | H25: 0
B26: Totals | C26: =SUM(C19:C25) -> 1931806.661 | D26: 936692.3283 | E26: 2868498.989 | F26: 893705.8949 | G26: 0 | H26: 893705.8949 | J26: =H26-'[13]New Del & De-Del'!$K$14 -> 0

Sheet ISB (hidden)
A1: ='Summary of Funding'!A1 -> Date Issued: 13th October 2025 | F1: ='Summary of Funding'!H1 -> Last amended:10th October 2025 | J1: ID
A2: COVENTRY CITY COUNCIL
A3: 2025/26 Funding Allocations for Schools
A5: Individual Schools Budget (ISB) 2025/26
A8: This page shows how the Individual Schools Budget (ISB), which is the total of all schools block delegated budget shares, has changed from the previous year. It shows the financial effect, in overall budget terms, of policy and funding decisions in terms of the increased or decreased level of resources for schools. The final ISB figure represents the total level of resources which go into the Fair Funding Formula to produce schools budget shares.
C14: Schools | D14: Schools
C15: Block | D15: Block
C16: (Primary) | D16: (Secondary)
C17: £ | D17: £
B19: FINAL ISB 2024/25 | C19: 163158443.9 | D19: 152121843.1 | L19: =[20]Schools_block_and_CSSB!$J$5-[20]Schools_block_and_CSSB!$I$5 -> 315280287
B21: Resource Adjustments
B22: De-delegation adjustments | C22: =[21]Formula!$AB$93-[22]Formula!$AB$93 -> -6404.092868 | L22: =C22 -> -6404.092868
B23: NFF - Additional resource | C23: =(L23*(C19/(C19+D19)))-147938 -> 833811.5812 | D23: =(L23*(D19/(C19+D19)))+147938 -> 1063278.648 | L23: =[23]Schools_block_and_CSSB!$J$7-[20]Schools_block_and_CSSB!$J$8-L24+[24]Formula!$AB$93 -> 1897090.229
B24: NFF - TPAG, TPECG and CSBG funding rolled into DSG | C24: ='[21]Minimum Funding Guarantee'!$M$93-'[21]Minimum Funding Guarantee'!$M$90+'[21]Minimum Funding Guarantee'!$M$129 -> 11100186.92 | D24: ='[21]Minimum Funding Guarantee'!$M$122+'[21]Minimum Funding Guarantee'!$M$130 -> 11124288.19 | L24: ='[24]Minimum Funding Guarantee'!$M$125 -> 22224475.1
B25: Pupil number changes funding | C25: =[23]Schools_block_and_CSSB!$C$19 -> 1640141.92 | D25: =[23]Schools_block_and_CSSB!$D$19-204 -> 1734147.605 | L25: =C25+D25-204 -> 3374085.525
B27: Education Service PPR
B29: Pupil data changes | C29: =[25]Summary!$B$10 -> 497807.04 | D29: =SUM([25]Summary!$C$3:$C$9)+[25]Summary!$D$2 -> 777600.4187 | L29: =C29+D29 -> 1275407.459
B30: Capping and Scaling | C30: =SUM([21]Formula!$Z$7,[21]Formula!$Z$9:$Z$17,[21]Formula!$Z$19:$Z$32,[21]Formula!$Z$34:$Z$36,[21]Formula!$Z$38:$Z$51,[21]Formula!$Z$53:$Z$54,[21]Formula!$Z$56,[21]Formula!$Z$58:$Z$64,[21]Formula!$Z$67:$Z$73,[21]Formula!$Z$76:$Z$81,[21]Formula!$Z$84:$Z$86,[21]Formula!$Z$88:$Z$92) -> -558007.8788 | D30: =SUM([21]Formula!$Z$104:$Z$105,[21]Formula!$Z$107:$Z$108,[21]Formula!$Z$110:$Z$121,[21]Formula!$Z$124)+204 -> -717399.2179 | L30: =C30+D30 -> -1275407.097
B32: FINAL ISB 2025/26 | C32: =SUM(C19:C31) -> 176665979.4 | D32: =SUM(D19:D31) -> 166103758.7 | L32: =SUM(L19:L30) -> 342769534.1
A36: If you have any queries about any of this information, please contact Paul Hammond 7697 2635

Sheet LogIn (hidden)
A1: User Name | B1: Password | C1: ID
A2: Alderman's Green | B2: NcR96Na | C2: 1
A3: Aldermoor Farm | B3: 8UBcN4 | C3: 2
A4: Allesley | B4: uE98HX | C4: 3
A5: Allesley Hall | B5: c2r66H | C5: 4
A6: Broad Heath | B6: 94ctnJ | C6: 5
A7: Cannon Park | B7: 4V8gK4 | C7: 6
A8: Charter | B8: bHkpG8a | C8: 7
A9: Clifford Bridge | B9: VksmRa1a | C9: 8
A10: Coundon Primary | B10: 4Y428c | C10: 9
A11: Courthouse Green | B11: BE75nX1a | C11: 10
A12: Earlsdon | B12: ZkcST6 | C12: 11
A13: Eastern Green Junior | B13: 24x4Xc | C13: 12
A14: Edgewick | B14: R3kRR4 | C14: 13
A15: Ernesford Grange | B15: GKD5A2 | C15: 14
A16: Finham | B16: 9TWJzm1a | C16: 15
A17: Frederick Bird | B17: agw9kda | C17: 16
A18: Gosford Park | B18: cuxXcd | C18: 17
A19: Grange Farm | B19: V2DGxe | C19: 18
A20: Grangehurst | B20: aFbkW3 | C20: 19
A21: Hearsall | B21: 3JcVC31a | C21: 20
A22: Henley Green | B22: J5cwAZ | C22: 21
A23: Hill Farm Academy | B23: 8S7cc81a | C23: 22
A24: Holbrook | B24: GkEHwt | C24: 23
A25: Hollyfast | B25: D4N45K | C25: 24
A26: Howes | B26: ccAeb5 | C26: 25
A27: John Gulson | B27: 26cA4V | C27: 26
A28: John Shelton | B28: B8cds4 | C28: 27
A29: Joseph Cash | B29: 33GsH6 | C29: 28
A30: Keresley Grange | B30: RPPyVD1a | C30: 29
A31: Limbrick Wood | B31: uk7NEQa | C31: 30
A32: Little Heath | B32: Av3kpba | C32: 31
A33: Longford Park | B33: 79byb7 | C33: 32
A34: Manor Park | B34: MkRSqT | C34: 33
A35: Moathouse | B35: 7URcPj | C35: 34
A36: Moseley | B36: FHQ99Q | C36: 35
A37: Mount Nod | B37: t9C84k | C37: 36
A38: Parkgate | B38: vk7KgW1a | C38: 37
A39: Parkhill | B39: CDXegf | C39: 38
A40: Pearl Hyde | B40: j3MNSS1a | C40: 39
A41: Potters Green | B41: YEy8sya | C41: 40
A42: Radford Academy | B42: p43M6w1a | C42: 41
A43: Ravensdale | B43: APVTV2 | C43: 42
A44: Richard Lee | B44: hAt28j1a | C44: 43
A45: Sir Frank Whittle | B45: GX72Yc1a | C45: 44
A46: St. Christopher | B46: 47967b | C46: 45
A47: Southfields | B47: 5Wbz28 | C47: 46
A48: Sowe Valley | B48: CmbnbG | C48: 47
A49: Spon Gate | B49: kyX882 | C49: 48
A50: Stanton Bridge | B50: 334HJR1a | C50: 49
A51: Stivichall | B51: 7Qc6H3 | C51: 50
A52: Stoke | B52: 6R28Wf | C52: 51
A53: Stoke Heath | B53: abbM4V | C53: 52
A54: Templars | B54: X23zbq | C54: 53
A55: Whitley Abbey | B55: 64t3u4 | C55: 54
A56: Whitmore Park | B56: bY76ab | C56: 55
A57: Whoberley Hall | B57: Q6kTTB | C57: 56
A58: Willenhall Community | B58: rHAW8H | C58: 57
A59: Wyken Croft | B59: U4pEJ3 | C59: 58
A60: All Saints' CE | B60: BgJH5H | C60: 59
A61: All Souls' RC | B61: 5dQG7T | C61: 60
A62: Christ the King RC Primary | B62: AbcSYP1a | C62: 61
A63: Corpus Christi RC | B63: E446Hn1a | C63: 62
A64: St Laurance's CE Academy | B64: j877qE1a | C64: 63
A65: Good Shepherd RC | B65: ZX6bRM1a | C65: 64
A66: Holy Family RC | B66: y8FdX4 | C66: 65
A67: Leigh CE | B67: y5ZNQz1a | C67: 66
A68: Our Lady of the Assumption RC | B68: 6f89MQ | C68: 67
A69: Sacred Heart RC | B69: 4n6E5w1a | C69: 68
A70: St. Andrew's CE Infant | B70: zS5569 | C70: 69
A71: St. Anne's RC | B71: H2YK64 | C71: 70
A72: St. Augustine's RC | B72: cAb7FY1a | C72: 71
A73: St. Bartholomew's Academy | B73: CPKbKb1a | C73: 72
A74: St. Elizabeth's RC | B74: 2s47541a | C74: 73
A75: St. Gregory's RC | B75: YHzVS61a | C75: 74
A76: St. John Fisher RC | B76: G97Ncj1a | C76: 75
A77: St. John Vianney RC | B77: RkP3wb1a | C77: 76
A78: St. John's CE | B78: WV25551a | C78: 77
A79: St. Mary's & St. Benedict's RC | B79: hNW6cM | C79: 78
A80: St. Osburg's RC | B80: D7UP4r | C80: 79
A81: St. Patrick's RC | B81: 6bP7aV1a | C81: 80
A82: Sts. Peter & Paul RC | B82: K43Jb31a | C82: 81
A83: St. Thomas More RC | B83: Kc3rR81a | C83: 82
A84: Stretton CE Academy | B84: BMJT831a | C84: 83
A85: Walsgrave CE | B85: DM93SH1a | C85: 84

Sheet LoginPage

Sheet Funding Floor (hidden)
A1: ='Summary of Funding'!A1 -> Date Issued: 13th October 2025 | L1: ='Summary of Funding'!H1 -> Last amended:10th October 2025
A2: COVENTRY CITY COUNCIL - PEOPLE'S DIRECTORATE
A3: ='Summary of Funding'!A3:H3 -> 2025/26 Funding Allocations for Schools | N3: ='Summary of Funding'!N3 -> 50
A4: Calculation of Funding Floor
A6: =VLOOKUP(("P"&N3),[26]Formula!$A$10:$X$96,3,FALSE) -> Stivichall | N6: Checks
I9: £ | L9: £
A11: 2020/21 Total funding allocated after MFL | L11: =VLOOKUP(("P"&$N$3),'[27]Funding Floor'!$A$3:$U$90,6,FALSE) -> 1871968 | N11: =VLOOKUP(("P"&$N$3),'[27]Funding Floor'!$A$3:$U$90,6,FALSE)-L11 -> 0
A13: Less:
A14: 2020/21 Mobility | I14: =VLOOKUP(("P"&$N$3),'[27]Funding Floor'!$A$3:$U$90,7,FALSE) -> 0 | J14: =VLOOKUP(("P"&$N$3),'[27]Funding Floor'!$A$3:$U$90,6,FALSE) -> 1871968 | N14: =VLOOKUP(("P"&$N$3),'[27]Funding Floor'!$A$3:$U$90,7,FALSE)-I14 -> 0
A16: 2020/21 Lump Sum | I16: =VLOOKUP(("P"&$N$3),'[27]Funding Floor'!$A$3:$U$90,8,FALSE) -> 110364.1 | J16: =VLOOKUP(("P"&$N$3),'[27]Funding Floor'!$A$3:$U$90,6,FALSE) -> 1871968 | N16: =VLOOKUP(("P"&$N$3),'[27]Funding Floor'!$A$3:$U$90,8,FALSE)-I16 -> 0
A18: 2020/21 Split Site | I18: =VLOOKUP(("P"&$N$3),'[27]Funding Floor'!$A$3:$U$90,9,FALSE) -> 0 | J18: =VLOOKUP(("P"&$N$3),'[27]Funding Floor'!$A$3:$U$90,6,FALSE) -> 1871968 | N18: =VLOOKUP(("P"&$N$3),'[27]Funding Floor'!$A$3:$U$90,9,FALSE)-I18 -> 0
A20: 2020/21 Rates Funding | I20: =VLOOKUP(("P"&$N$3),'[27]Funding Floor'!$A$3:$U$90,11,FALSE) -> 58968 | J20: =VLOOKUP(("P"&$N$3),'[27]Funding Floor'!$A$3:$U$90,6,FALSE) -> 1871968 | N20: =VLOOKUP(("P"&$N$3),'[27]Funding Floor'!$A$3:$U$90,11,FALSE)-I20 -> 0
A22: 2020/21 Education Improvement Commissioning Pot | I22: =VLOOKUP(("P"&$N$3),'[27]Funding Floor'!$A$3:$U$90,12,FALSE) -> 4681.38092 | J22: =VLOOKUP(("P"&$N$3),'[27]Funding Floor'!$A$3:$U$90,6,FALSE) -> 1871968 | L22: =-SUM(I14:I22) -> -174013.4809 | N22: =VLOOKUP(("P"&$N$3),'[27]Funding Floor'!$A$3:$U$90,12,FALSE)-I22 -> 0
A25: 2020/21 Pupil Led Funding | L25: =L11+L22 -> 1697954.519 | N25: =VLOOKUP(("P"&$N$3),'[27]Funding Floor'!$A$3:$U$90,15,FALSE)-L25 -> 0
A27: October 2019 Pupil Number | H27: [A] | I27: =VLOOKUP(("P"&$N$3),'[27]Funding Floor'!$A$3:$U$90,17,FALSE) -> 518 | J27: =VLOOKUP(("P"&$N$3),'[27]Funding Floor'!$A$3:$U$90,6,FALSE) -> 1871968 | N27: =VLOOKUP(("P"&$N$3),'[27]Funding Floor'!$A$3:$U$90,17,FALSE)-I27 -> 0
A29: 2020/21 Pupil Led Funding (per pupil) | H29: [B] | L29: =L25/I27 -> 3277.904477 | N29: =VLOOKUP(("P"&$N$3),'[27]Funding Floor'!$A$3:$U$90,18,FALSE)-L29 -> 0
A32: 2017/18 calculated Funding Floor (FF) per Pupil | I32: =VLOOKUP(("P"&$N$3),'[27]Funding Floor'!$A$3:$U$90,4,FALSE) -> 3369.963 | J32: =VLOOKUP(("P"&$N$3),'[27]Funding Floor'!$A$3:$U$90,6,FALSE) -> 1871968 | N32: =VLOOKUP(("P"&$N$3),'[27]Funding Floor'!$A$3:$U$90,4,FALSE)-I32 -> 0
A34: 2020/21 Funding Floor protection level | I34: 0.01
A36: Funding Floor per pupil | H36: [C] | L36: =I32*(1+I34) -> 3403.66263
A38: Shortfall to Funding Floor per pupil | H38: [D] = [C] - [B] | L38: =IF(L29<L36,L36-L29,0) -> 125.758153
A42: 2020/21 Funding Floor Adjustment | H42: = [A] x [D] | L42: =L38*I27 -> 65142.72326 | N42: =VLOOKUP(("P"&$N$3),'[27]Funding Floor'!$A$3:$U$90,21,FALSE)-L42 -> 0
